fUSD/lending_fUSD_20250225
["ID","MTS","AMOUNT","RATE_DAILY","PERIOD"]
[354477088,1740523851309,-500.0,0.00047397,120]
[354477089,1740523851319,-616.79,0.00047397,120]
[354477090,1740523851329,-500.0,0.00047397,120]
[354477091,1740523851338,-643.58,0.00047397,120]
[354477092,1740523851347,-500.0,0.00047397,120]
[354477093,1740523851357,-768.14,0.00047397,120]
[354477094,1740523851366,-509.53,0.00047397,120]
[354477095,1740523851375,-500.0,0.00047397,120]
[354477096,1740523851385,-1305.38,0.00047397,7]
[354477097,1740523851395,-595.23,0.00047397,120]
[354477098,1740523851404,-4247.17,0.00047397,120]
[354477099,1740523851414,-500.0,0.00047397,120]
[354477100,1740523851423,-3964.13,0.00047397,120]
[354477101,1740523851433,-500.0,0.00047397,120]
[354477102,1740523851442,-1328.12,0.00047397,120]
[354477103,1740523851451,-500.0,0.00047397,120]
[354477104,1740523851461,-500.0,0.00047397,120]
[354477105,1740523851470,-3898.94,0.00047397,120]
[354477106,1740523851479,-500.0,0.00047397,120]
[354477107,1740523851489,-500.0,0.00047397,120]
[354477108,1740523851498,-500.0,0.00047397,120]
[354477109,1740523851508,-5303.55,0.00047397,120]
[354477110,1740523851517,-570.36,0.00047397,120]
[354477111,1740523851526,-2763.31,0.00047397,120]
[354477112,1740523851535,-589.66581088,0.00047397,120]
[354477113,1740523851544,-500.0,0.00047397,120]
[354477114,1740523851554,-2107.57,0.00047397,120]
[354477115,1740523851563,-500.0,0.00047397,120]
[354477116,1740523851572,-946.05,0.00047397,120]
[354477117,1740523851581,-500.0,0.00047397,120]
[354477118,1740523851591,-500.0,0.00047397,120]
[354477119,1740523851600,-799.82,0.00047397,120]
[354477120,1740523851609,-1452.98,0.00047397,120]
[354477121,1740523851619,-872.21,0.00047397,120]
[354477122,1740523851628,-1308.96,0.00047397,120]
[354477123,1740523851638,-5564.94,0.00047397,100]
[354477124,1740523851647,-922.97,0.00047397,120]
[354477125,1740523851656,-4258.3,0.00047397,120]
[354477126,1740523851665,-209.84666743,0.00047397,120]
[354477127,1740523851676,-500.0,0.00047397,120]
[354477128,1740523851685,-1064.14,0.00047397,120]
[354477129,1740523851695,-923.48,0.00047397,120]
[354477130,1740523851704,-500.0,0.00047397,120]
[354477131,1740523851713,-438.95729888,0.00047397,120]
[354477132,1740523851722,-3714.28,0.00047397,120]
[354477133,1740523851731,-500.0,0.00047397,120]
[354477134,1740523851741,-500.0,0.00047397,120]
[354477135,1740523851750,-500.0,0.00047397,120]
[354477136,1740523851760,-2811.63,0.00047397,120]
[354477137,1740523851769,-500.0,0.00047397,120]
[354477138,1740523851779,-657.42,0.00047397,120]
[354477139,1740523851788,-500.0,0.00047397,120]
[354477140,1740523851798,-2840.63,0.00047397,120]
[354477141,1740523851808,-5487.35,0.00047397,120]
[354477142,1740523851816,-527.96,0.00047397,120]
[354477143,1740523851826,-500.0,0.00047397,120]
[354477144,1740523851835,-1379.62,0.00047397,120]
[354477145,1740523851844,-1664.86,0.00047397,120]
[354477146,1740523851853,-595.9,0.00047397,120]
[354477147,1740523851862,-500.0,0.00047397,120]
[354477148,1740523851871,-1050.04,0.00047397,120]
[354477149,1740523851880,-500.0,0.00047397,120]
[354477150,1740523851889,-500.0,0.00047397,120]
[354477151,1740523851899,-711.18,0.00047397,120]
[354477152,1740523851908,-500.0,0.00047397,120]
[354477153,1740523851917,-500.0,0.00047397,120]
[354477154,1740523851927,-500.0,0.00047397,120]
[354477155,1740523851936,-1262.57,0.00047397,120]
[354477156,1740523851946,-3135.94,0.00047397,120]
[354477157,1740523851956,-500.0,0.00047397,120]
[354477158,1740523851965,-4313.99,0.00047397,120]
[354477159,1740523851975,-502.62148669,0.00047397,120]
[354477160,1740523851984,-5005.04,0.00047397,120]
[354477161,1740523851993,-1692.2,0.00047397,120]
[354477162,1740523852002,-1196.06,0.00047397,120]
[354477163,1740523852012,-500.0,0.00047397,120]
[354477164,1740523852021,-500.0,0.00047397,120]
[354477165,1740523852030,-500.0,0.00047397,120]
[354477166,1740523852039,-3291.08,0.00047397,120]
[354477167,1740523852048,-500.0,0.00047397,120]
[354477168,1740523852057,-3117.24,0.00047397,120]
[354477169,1740523852068,-500.0,0.00047397,120]
[354477170,1740523852079,-500.0,0.00047397,120]
[354477171,1740523852091,-500.0,0.00047397,120]
[354477172,1740523852101,-4514.74,0.00047397,120]
[354477173,1740523852111,-500.0,0.00047397,120]
[354477174,1740523852122,-500.0,0.00047397,120]
[354477175,1740523852132,-1370.65,0.00047397,120]
[354477176,1740523852143,-2044.15,0.00047397,120]
[354477177,1740523852154,-4171.98,0.00047397,120]
[354477178,1740523852165,-500.0,0.00047397,120]
[354477179,1740523852174,-500.0,0.00047397,120]
[354477180,1740523852183,-2506.58,0.00047397,120]
[354477181,1740523852195,-500.0,0.00047397,120]
[354477182,1740523852205,-500.0,0.00047397,120]
[354477183,1740523852214,-500.0,0.00047397,120]
[354477184,1740523852224,-500.0,0.00047397,120]
[354477185,1740523852234,-2766.91,0.00047397,120]
[354477186,1740523852245,-1744.72,0.00047397,120]
[354477187,1740523852256,-3744.03,0.00047397,120]
[354477188,1740523852266,-533.84,0.00047397,120]
[354477189,1740523852275,-500.0,0.00047397,120]
[354477190,1740523852284,-500.0,0.00047397,120]
[354477191,1740523852294,-500.0,0.00047397,120]
[354477192,1740523852303,-506.70907746,0.00047397,120]
[354477193,1740523852313,-1247.03,0.00047397,120]
[354477194,1740523852323,-6631.42,0.00047397,120]
[354477195,1740523852335,-500.0,0.00047397,120]
[354477196,1740523852345,-500.0,0.00047397,120]
[354477197,1740523852354,-353.88,0.00047397,7]
[354477198,1740523852364,-500.0,0.00047397,120]
[354477199,1740523852374,-2471.8,0.00047397,120]
[354477200,1740523852383,-500.0,0.00047397,30]
[354477201,1740523852394,-2613.45,0.00047397,120]
[354477202,1740523852403,-8273.72,0.00047397,120]
[354477203,1740523852413,-2518.6,0.00047397,120]
[354477204,1740523852423,-500.0,0.00047397,120]
[354477205,1740523852432,-2379.05,0.00047397,120]
[354477206,1740523852442,-2000.0,0.00047397,30]
[354477207,1740523852451,-2653.52,0.00047397,120]
[354477208,1740523852460,-500.0,0.00047397,120]
[354477209,1740523852469,-500.0,0.00047397,120]
[354477210,1740523852479,-2653.43,0.00047397,120]
[354477211,1740523852488,-500.0,0.00047397,120]
[354477212,1740523852497,-500.0,0.00047397,120]
[354477213,1740523852506,-500.0,0.00047397,120]
[354477214,1740523852515,-2218.11,0.00047397,120]
[354477215,1740523852524,-4748.16,0.00047397,120]
[354477216,1740523852534,-500.0,0.00047397,120]
[354477217,1740523852543,-500.0,0.00047397,120]
[354477218,1740523852552,-713.69,0.00047397,120]
[354477219,1740523852561,-151.0,0.00047397,14]
[354477220,1740523852571,-2400.26,0.00047397,120]
[354477221,1740523852580,-2891.89,0.00047397,120]
[354477222,1740523852589,-500.0,0.00047397,120]
[354477223,1740523852599,-693.14,0.00047397,120]
[354477224,1740523852609,-972.2,0.00047397,120]
[354477225,1740523852618,-191.91608996,0.00047397,120]
[354477226,1740523852627,-2728.12,0.00047397,120]
[354477227,1740523852636,-645.08,0.00047397,120]
[354477228,1740523852646,-1447.8,0.00047397,120]
[354477229,1740523852655,-500.0,0.00047397,120]
[354477230,1740523852665,-2835.37,0.00047397,120]
[354477231,1740523852674,-500.0,0.00047397,120]
[354477232,1740523852683,-111273.09050416,0.000475,120]
[354477233,1740523852692,-151.0,0.000475,14]
[354477234,1740523852702,-2353.06,0.00047547,120]
[354477235,1740523852711,-1899.46,0.00047547,120]
[354477236,1740523852720,-952.28,0.00047547,120]
[354477237,1740523852730,-3542.79,0.00047547,120]
[354477238,1740523852741,-500.0,0.00047547,120]
[354477239,1740523852750,-2647.3,0.00047547,120]
[354477240,1740523852759,-1501.17,0.00047547,120]
[354477241,1740523852768,-2615.35,0.00047547,120]
[354477242,1740523852778,-1415.73,0.00047547,120]
[354477243,1740523852787,-2391.26,0.00047547,120]
[354477244,1740523852795,-1085.82,0.00047547,120]
[354477245,1740523852804,-537.10482574,0.00047547,120]
[354477246,1740523852815,-1633.46,0.00047547,120]
[354477247,1740523852823,-737.05,0.00047547,120]
[354477248,1740523852833,-175.9124754,0.00047605,28]
[354477249,1740523852842,-500.0,0.00047671,120]
[354477250,1740523852851,-3714.35,0.00047671,120]
[354477251,1740523852860,-1142.9,0.00047671,120]
[354477252,1740523852868,-500.0,0.00047671,120]
[354477253,1740523852878,-2481.42,0.00047671,120]
[354477254,1740523852887,-500.0,0.00047671,120]
[354477255,1740523852896,-1145.98,0.00047671,120]
[354477256,1740523852905,-500.0,0.00047671,120]
[354477257,1740523852914,-500.0,0.00047671,120]
[354477258,1740523852923,-500.0,0.00047671,120]
[354477259,1740523852932,-500.0,0.00047671,120]
[354477260,1740523852942,-1662.46,0.00047671,120]
[354477261,1740523852951,-520.55,0.00047671,120]
[354477262,1740523852960,-500.0,0.00047671,120]
[354477263,1740523852969,-515.56,0.00047671,120]
[354477264,1740523852978,-597.34,0.00047671,120]
[354477265,1740523852987,-500.0,0.00047671,120]
[354477266,1740523852996,-1646.27,0.00047671,120]
[354477267,1740523853005,-1737.04,0.00047671,120]
[354477268,1740523853014,-8115.69,0.00047671,120]
[354477269,1740523853023,-500.0,0.00047671,120]
[354477270,1740523853032,-3192.01,0.00047671,120]
[354477271,1740523853041,-1888.38,0.00047671,120]
[354477272,1740523853049,-500.0,0.00047671,120]
[354477273,1740523853059,-500.0,0.00047671,120]
[354477274,1740523853068,-1218.74,0.00047671,120]
[354477275,1740523853078,-500.0,0.00047671,120]
[354477276,1740523853089,-500.0,0.00047671,120]
[354477277,1740523853099,-2085.08,0.00047671,120]
[354477278,1740523853109,-2320.94,0.00047671,120]
[354477279,1740523853118,-500.0,0.00047671,120]
[354477280,1740523853127,-2567.17,0.00047671,120]
[354477281,1740523853138,-468.28291345,0.00047671,120]
[354477282,1740523853147,-740.85,0.00047671,120]
[354477283,1740523853156,-500.0,0.00047671,120]
[354477284,1740523853167,-2636.26,0.00047671,120]
[354477285,1740523853177,-892.29,0.00047671,120]
[354477286,1740523853186,-1423.33,0.00047671,120]
[354477287,1740523853195,-729.75,0.00047671,120]
[354477288,1740523853204,-705.75,0.00047671,120]
[354477289,1740523853213,-500.0,0.00047671,120]
[354477290,1740523853222,-1916.75,0.00047671,120]
[354477291,1740523853232,-1897.8,0.00047671,120]
[354477292,1740523853241,-4664.22,0.00047671,120]
[354477293,1740523853251,-668.16,0.00047671,120]
[354477294,1740523853261,-1806.42,0.00047671,120]
[354477295,1740523853382,-1138.11,0.00047671,120]
[354477296,1740523853392,-2886.8,0.00047671,120]
[354477297,1740523853401,-500.0,0.00047671,120]
[354477298,1740523853410,-500.0,0.00047671,120]
[354477299,1740523853420,-2100.27,0.00047671,120]
[354477300,1740523853429,-500.0,0.00047671,120]
[354477301,1740523853440,-1366.44,0.00047671,120]
[354477302,1740523853451,-5059.03,0.00047671,120]
[354477303,1740523853460,-2916.03,0.00047671,120]
[354477304,1740523853470,-4319.09,0.00047671,120]
[354477305,1740523853480,-500.0,0.00047671,120]
[354477306,1740523853489,-3246.4,0.00047671,120]
[354477307,1740523853499,-500.0,0.00047671,120]
[354477308,1740523853508,-500.0,0.00047671,120]
[354477309,1740523853518,-2718.58,0.00047671,120]
[354477310,1740523853528,-500.0,0.00047671,120]
[354477311,1740523853538,-491.25402828,0.00047671,120]
[354477312,1740523853547,-1298.05,0.00047671,120]
[354477313,1740523853556,-2382.56,0.00047671,120]
[354477314,1740523853566,-3321.32,0.00047671,120]
[354477315,1740523853575,-500.0,0.00047671,120]
[354477316,1740523853585,-2682.79,0.00047671,120]
[354477317,1740523853595,-500.0,0.00047671,120]
[354477318,1740523853605,-3799.01,0.00047671,120]
[354477319,1740523853614,-1822.68,0.00047671,120]
[354477320,1740523853624,-2543.0,0.00047671,120]
[354477321,1740523853633,-2831.56,0.00047671,120]
[354477322,1740523853642,-2989.95,0.00047671,120]
[354477323,1740523853652,-2143.48,0.00047671,120]
[354477324,1740523853661,-500.0,0.00047671,120]
[354477325,1740523853671,-750.97,0.00047671,120]
[354477326,1740523853680,-500.0,0.00047671,120]
[354477327,1740523853690,-500.0,0.00047671,120]
[354477328,1740523853700,-500.0,0.00047671,120]
[354477329,1740523853710,-5029.55,0.00047671,120]
[354477330,1740523853719,-500.0,0.00047671,120]
[354477331,1740523853729,-3467.63,0.00047671,120]
[354477332,1740523853738,-500.0,0.00047671,120]
[354477333,1740523853748,-500.0,0.00047671,120]
[354477334,1740523853758,-2203.36,0.00047671,120]
[354477335,1740523853767,-671.01,0.00047671,120]
[354477336,1740523853777,-500.0,0.00047671,120]
[354477337,1740523853786,-3071.38,0.00047671,120]
[354477338,1740523853795,-551.69,0.00047671,120]
[354477339,1740523853805,-573.04781237,0.00047671,120]
[354477340,1740523853814,-1522.25,0.00047671,120]
[354477341,1740523853823,-3711.8,0.00047671,120]
[354477342,1740523853833,-500.0,0.00047671,120]
[354477343,1740523853843,-500.0,0.00047671,120]
[354477344,1740523853853,-500.0,0.00047671,120]
[354477345,1740523853862,-500.0,0.00047671,120]
[354477346,1740523853873,-500.0,0.00047671,120]
[354477347,1740523853883,-3960.02,0.00047671,120]
[354477348,1740523853892,-4099.32,0.00047671,120]
[354477349,1740523853902,-4671.2,0.00047671,120]
[354477350,1740523853912,-500.0,0.00047671,120]
[354477351,1740523853921,-500.0,0.00047671,120]
[354477352,1740523853930,-3780.25,0.00047671,120]
[354477353,1740523853939,-500.0,0.00047671,120]
[354477354,1740523853949,-1280.88,0.00047671,120]
[354477355,1740523853958,-500.0,0.00047671,120]
[354477356,1740523853967,-2591.52,0.00047671,120]
[354477357,1740523853976,-4963.55,0.00047671,120]
[354477358,1740523853985,-500.0,0.00047671,120]
[354477359,1740523853995,-500.0,0.00047671,120]
[354477360,1740523854004,-6256.61,0.00047671,120]
[354477361,1740523854013,-500.0,0.00047671,120]
[354477362,1740523854022,-616.79,0.00047671,120]
[354477363,1740523854032,-500.0,0.00047671,120]
[354477364,1740523854041,-643.58,0.00047671,120]
[354477365,1740523854050,-500.0,0.00047671,120]
[354477366,1740523854059,-768.14,0.00047671,120]
[354477367,1740523854069,-509.53,0.00047671,120]
[354477368,1740523854078,-500.0,0.00047671,120]
[354477369,1740523854089,-1305.38,0.00047671,7]
[354477370,1740523854100,-595.23,0.00047671,120]
[354477371,1740523854109,-4247.17,0.00047671,120]
[354477372,1740523854119,-500.0,0.00047671,120]
[354477373,1740523854128,-3964.13,0.00047671,120]
[354477374,1740523854139,-500.0,0.00047671,120]
[354477375,1740523854148,-1328.12,0.00047671,120]
[354477376,1740523854157,-500.0,0.00047671,120]
[354477377,1740523854168,-500.0,0.00047671,120]
[354477378,1740523854178,-3898.94,0.00047671,120]
[354477379,1740523854187,-500.0,0.00047671,120]
[354477380,1740523854196,-528.45087975,0.00047671,120]
[354477381,1740523854206,-500.0,0.00047671,120]
[354477382,1740523854215,-5303.55,0.00047671,120]
[354477383,1740523854225,-570.36,0.00047671,120]
[354477384,1740523854234,-2763.31,0.00047671,120]
[354477385,1740523854243,-500.0,0.00047671,120]
[354477386,1740523854253,-2107.57,0.00047671,120]
[354477387,1740523854262,-500.0,0.00047671,120]
[354477388,1740523854271,-946.05,0.00047671,120]
[354477389,1740523854281,-500.0,0.00047671,120]
[354477390,1740523854290,-500.0,0.00047671,120]
[354477391,1740523854299,-799.82,0.00047671,120]
[354477392,1740523854308,-1452.98,0.00047671,120]
[354477393,1740523854318,-872.21,0.00047671,120]
[354477394,1740523854327,-1308.96,0.00047671,120]
[354477395,1740523854336,-922.97,0.00047671,120]
[354477396,1740523854347,-5564.94,0.00047671,100]
[354477397,1740523854356,-4258.3,0.00047671,120]
[354477398,1740523854366,-500.0,0.00047671,120]
[354477399,1740523854375,-1064.14,0.00047671,120]
[354477400,1740523854384,-923.48,0.00047671,120]
[354477401,1740523854394,-500.0,0.00047671,120]
[354477402,1740523854403,-3714.28,0.00047671,120]
[354477403,1740523854413,-500.0,0.00047671,120]
[354477404,1740523854423,-500.0,0.00047671,120]
[354477405,1740523854432,-500.0,0.00047671,120]
[354477406,1740523854442,-2811.63,0.00047671,120]
[354477407,1740523854451,-500.0,0.00047671,120]
[354477408,1740523854460,-657.42,0.00047671,120]
[354477409,1740523854471,-617.93879158,0.00047671,120]
[354477410,1740523854480,-2840.63,0.00047671,120]
[354477411,1740523854490,-5487.35,0.00047671,120]
[354477412,1740523854499,-527.96,0.00047671,120]
[354477413,1740523854509,-500.0,0.00047671,120]
[354477414,1740523854518,-1379.62,0.00047671,120]
[354477415,1740523854528,-1664.86,0.00047671,120]
[354477416,1740523854543,-595.9,0.00047671,120]
[354477417,1740523854553,-500.0,0.00047671,120]
[354477418,1740523854562,-1050.04,0.00047671,120]
[354477419,1740523854573,-500.0,0.00047671,120]
[354477420,1740523854583,-500.0,0.00047671,120]
[354477421,1740523854593,-711.18,0.00047671,120]
[354477422,1740523854603,-500.0,0.00047671,120]
[354477423,1740523854612,-500.0,0.00047671,120]
[354477424,1740523854621,-500.0,0.00047671,120]
[354477425,1740523854631,-1262.57,0.00047671,120]
[354477426,1740523854640,-3135.94,0.00047671,120]
[354477427,1740523854650,-500.0,0.00047671,120]
[354477428,1740523854659,-4313.99,0.00047671,120]
[354477429,1740523854669,-5005.04,0.00047671,120]
[354477430,1740523854678,-1692.2,0.00047671,120]
[354477431,1740523854688,-1196.06,0.00047671,120]
[354477432,1740523854697,-500.0,0.00047671,120]
[354477433,1740523854706,-543.52802735,0.00047671,120]
[354477434,1740523854716,-500.0,0.00047671,120]
[354477435,1740523854725,-3291.08,0.00047671,120]
[354477436,1740523854734,-500.0,0.00047671,120]
[354477437,1740523854743,-3117.24,0.00047671,120]
[354477438,1740523854753,-500.0,0.00047671,120]
[354477439,1740523854762,-500.0,0.00047671,120]
[354477440,1740523854771,-500.0,0.00047671,120]
[354477441,1740523854780,-4514.74,0.00047671,120]
[354477442,1740523854790,-500.0,0.00047671,120]
[354477443,1740523854799,-500.0,0.00047671,120]
[354477444,1740523854808,-1370.65,0.00047671,120]
[354477445,1740523854818,-2044.15,0.00047671,120]
[354477446,1740523854827,-4171.98,0.00047671,120]
[354477447,1740523854836,-500.0,0.00047671,120]
[354477448,1740523854846,-500.0,0.00047671,120]
[354477449,1740523854856,-2506.58,0.00047671,120]
[354477450,1740523854866,-500.0,0.00047671,120]
[354477451,1740523854875,-500.0,0.00047671,120]
[354477452,1740523854885,-500.0,0.00047671,120]
[354477453,1740523854895,-500.0,0.00047671,120]
[354477454,1740523854904,-2766.91,0.00047671,120]
[354477455,1740523854914,-1744.72,0.00047671,120]
[354477456,1740523854923,-3744.03,0.00047671,120]
[354477457,1740523854932,-533.84,0.00047671,120]
[354477458,1740523854942,-500.0,0.00047671,120]
[354477459,1740523854952,-500.0,0.00047671,120]
[354477460,1740523854962,-500.0,0.00047671,120]
[354477461,1740523854971,-1247.03,0.00047671,120]
[354477462,1740523854981,-6631.42,0.00047671,120]
[354477463,1740523854990,-500.0,0.00047671,120]
[354477464,1740523855000,-353.88,0.00047671,7]
[354477465,1740523855009,-500.0,0.00047671,120]
[354477466,1740523855018,-2471.8,0.00047671,120]
[354477467,1740523855028,-500.0,0.00047671,30]
[354477468,1740523855037,-8273.72,0.00047671,120]
[354477469,1740523855047,-2613.45,0.00047671,120]
[354477470,1740523855057,-2518.6,0.00047671,120]
[354477471,1740523855067,-579.87944182,0.00047671,120]
[354477472,1740523855076,-2000.0,0.00047671,30]
[354477473,1740523855087,-2379.05,0.00047671,120]
[354477474,1740523855099,-2653.52,0.00047671,120]
[354477475,1740523855108,-500.0,0.00047671,120]
[354477476,1740523855118,-500.0,0.00047671,120]
[354477477,1740523855127,-2653.43,0.00047671,120]
[354477478,1740523855137,-481.53,0.00047671,120]
[354477479,1740523855147,-500.0,0.00047671,120]
[354477480,1740523855156,-500.0,0.00047671,120]
[354477481,1740523855166,-2218.11,0.00047671,120]
[354477482,1740523855175,-4748.16,0.00047671,120]
[354477483,1740523855185,-500.0,0.00047671,120]
[354477484,1740523855194,-500.0,0.00047671,120]
[354477485,1740523855203,-713.69,0.00047671,120]
[354477486,1740523855213,-288.263184,0.00047671,14]
[354477487,1740523855223,-2400.26,0.00047671,120]
[354477488,1740523855234,-2891.89,0.00047671,120]
[354477489,1740523855243,-693.14,0.00047671,120]
[354477490,1740523855252,-500.0,0.00047671,120]
[354477491,1740523855262,-972.2,0.00047671,120]
[354477492,1740523855271,-2728.12,0.00047671,120]
[354477493,1740523855280,-645.08,0.00047671,120]
[354477494,1740523855289,-1447.8,0.00047671,120]
[354477495,1740523855299,-504.42913859,0.00047671,120]
[354477496,1740523855308,-2835.37,0.00047671,120]
[354477497,1740523855317,-2353.06,0.00047821,120]
[354477498,1740523855327,-1899.46,0.00047821,120]
[354477499,1740523855337,-952.28,0.00047821,120]
[354477500,1740523855347,-3542.79,0.00047821,120]
[354477501,1740523855357,-500.0,0.00047821,120]
[354477502,1740523855367,-2647.3,0.00047821,120]
[354477503,1740523855376,-1501.17,0.00047821,120]
[354477504,1740523855386,-2615.35,0.00047821,120]
[354477505,1740523855395,-1415.73,0.00047821,120]
[354477506,1740523855404,-2391.26,0.00047821,120]
[354477507,1740523855414,-1085.82,0.00047821,120]
[354477508,1740523855423,-1633.46,0.00047821,120]
[354477509,1740523855433,-737.05,0.00047821,120]
[354477510,1740523855442,-8711.95992232,0.000479,15]
[354477511,1740523855755,-2700.0,0.000479,17]
[354477512,1740523855768,-327.42556239,0.000479,120]
[354477513,1740523855777,-500.0,0.00047945,120]
[354477514,1740523855787,-3714.35,0.00047945,120]
[354477515,1740523855796,-1142.9,0.00047945,120]
[354477516,1740523855805,-500.0,0.00047945,120]
[354477517,1740523855815,-2481.42,0.00047945,120]
[354477518,1740523855824,-1145.98,0.00047945,120]
[354477519,1740523855833,-500.0,0.00047945,120]
[354477520,1740523855843,-500.0,0.00047945,120]
[354477521,1740523855853,-500.0,0.00047945,120]
[354477522,1740523855863,-500.0,0.00047945,120]
[354477523,1740523855873,-500.0,0.00047945,120]
[354477524,1740523855885,-1662.46,0.00047945,120]
[354477525,1740523855894,-520.55,0.00047945,120]
[354477526,1740523855903,-500.0,0.00047945,120]
[354477527,1740523855913,-515.56,0.00047945,120]
[354477528,1740523855923,-597.34,0.00047945,120]
[354477529,1740523855932,-500.0,0.00047945,120]
[354477530,1740523855941,-1646.27,0.00047945,120]
[354477531,1740523855950,-1737.04,0.00047945,120]
[354477532,1740523855960,-8115.69,0.00047945,120]
[354477533,1740523855969,-500.0,0.00047945,120]
[354477534,1740523855979,-3192.01,0.00047945,120]
[354477535,1740523855988,-1888.38,0.00047945,120]
[354477536,1740523855998,-500.0,0.00047945,120]
[354477537,1740523856007,-1218.74,0.00047945,120]
[354477538,1740523856017,-500.0,0.00047945,120]
[354477539,1740523856027,-500.0,0.00047945,120]
[354477540,1740523856036,-500.0,0.00047945,120]
[354477541,1740523856046,-2085.08,0.00047945,120]
[354477542,1740523856057,-2320.94,0.00047945,120]
[354477543,1740523856066,-2567.17,0.00047945,120]
[354477544,1740523856075,-740.85,0.00047945,120]
[354477545,1740523856087,-500.0,0.00047945,120]
[354477546,1740523856097,-2636.26,0.00047945,120]
[354477547,1740523856106,-500.0,0.00047945,120]
[354477548,1740523856116,-892.29,0.00047945,120]
[354477549,1740523856126,-1423.33,0.00047945,120]
[354477550,1740523856136,-729.75,0.00047945,120]
[354477551,1740523856145,-705.75,0.00047945,120]
[354477552,1740523856155,-500.0,0.00047945,120]
[354477553,1740523856166,-1916.75,0.00047945,120]
[354477554,1740523856176,-1897.8,0.00047945,120]
[354477555,1740523856187,-4664.22,0.00047945,120]
[354477556,1740523856197,-668.16,0.00047945,120]
[354477557,1740523856207,-1806.42,0.00047945,120]
[354477558,1740523856217,-1138.11,0.00047945,120]
[354477559,1740523856227,-2886.8,0.00047945,120]
[354477560,1740523856237,-500.0,0.00047945,120]
[354477561,1740523856246,-500.0,0.00047945,120]
[354477562,1740523856258,-2100.27,0.00047945,120]
[354477563,1740523856268,-500.0,0.00047945,120]
[354477564,1740523856278,-1366.44,0.00047945,120]
[354477565,1740523856289,-5059.03,0.00047945,120]
[354477566,1740523856299,-2916.03,0.00047945,120]
[354477567,1740523856308,-4319.09,0.00047945,120]
[354477568,1740523856318,-500.0,0.00047945,120]
[354477569,1740523856327,-3246.4,0.00047945,120]
[354477570,1740523856337,-500.0,0.00047945,120]
[354477571,1740523856347,-500.0,0.00047945,120]
[354477572,1740523856357,-2718.58,0.00047945,120]
[354477573,1740523856367,-500.0,0.00047945,120]
[354477574,1740523856376,-1298.05,0.00047945,120]
[354477575,1740523856386,-2382.56,0.00047945,120]
[354477576,1740523856396,-3321.32,0.00047945,120]
[354477577,1740523856405,-500.0,0.00047945,120]
[354477578,1740523856415,-2682.79,0.00047945,120]
[354477579,1740523856425,-500.0,0.00047945,120]
[354477580,1740523856434,-3799.01,0.00047945,120]
[354477581,1740523856444,-1822.68,0.00047945,120]
[354477582,1740523856454,-2543.0,0.00047945,120]
[354477583,1740523856464,-2831.56,0.00047945,120]
[354477584,1740523856473,-2989.95,0.00047945,120]
[354477585,1740523856482,-2143.48,0.00047945,120]
[354477586,1740523856492,-500.0,0.00047945,120]
[354477587,1740523856501,-750.97,0.00047945,120]